fUST/lending_fUST_20241230
["ID","MTS","AMOUNT","RATE_DAILY","PERIOD"]
[347154393,1735528242582,-500.0,0.00014425,2]
[347154394,1735528242591,-500.0,0.00014425,2]
[347154395,1735528242601,-500.0,0.00014425,2]
[347154396,1735528242610,-500.0,0.00014425,2]
[347154397,1735528242619,-559.36,0.00014425,2]
[347154398,1735528242628,-177.78597791,0.00014425,2]
[347154399,1735528242637,-500.0,0.00014427,2]
[347154400,1735528242646,-500.0,0.00014427,2]
[347154401,1735528242656,-500.0,0.00014427,2]
[347154402,1735528242665,-500.0,0.00014427,2]
[347154403,1735528242675,-363.9694502,0.00014427,2]
[347154404,1735528242685,-500.0,0.00014427,2]
[347154405,1735528242694,-500.0,0.00014427,2]
[347154406,1735528242704,-500.0,0.00014427,2]
[347154407,1735528242713,-500.0,0.00014427,2]
[347154408,1735528242723,-500.0,0.00014427,2]
[347154409,1735528242732,-500.0,0.00014427,2]
[347154410,1735528242741,-500.0,0.00014427,2]
[347154411,1735528242750,-500.0,0.00014427,2]
[347154412,1735528242762,-500.0,0.00014427,2]
[347154413,1735528242772,-500.0,0.00014427,2]
[347154414,1735528242781,-500.0,0.00014427,2]
[347154415,1735528242791,-500.0,0.00014427,2]
[347154416,1735528242800,-500.0,0.00014427,2]
[347154417,1735528242810,-500.0,0.00014427,2]
[347154418,1735528242821,-500.0,0.00014428,2]
[347154419,1735528242831,-500.0,0.00014428,2]
[347154420,1735528242841,-500.0,0.00014428,2]
[347154421,1735528242851,-500.0,0.00014428,2]
[347154422,1735528242860,-500.0,0.00014428,2]
[347154423,1735528242869,-500.0,0.00014428,2]
[347154424,1735528242878,-500.0,0.00014428,2]
[347154425,1735528242887,-500.0,0.00014428,2]
[347154426,1735528242896,-459.75229834,0.00014428,2]
[347154427,1735528242905,-317.77390519,0.00014428,2]
[347154428,1735528242915,-500.0,0.00014428,2]
[347154429,1735528242924,-500.0,0.00014428,2]
[347154430,1735528242933,-500.0,0.00014428,2]
[347154431,1735528242943,-500.0,0.00014428,2]
[347154432,1735528242953,-500.0,0.00014428,2]
[347154434,1735528242963,-500.0,0.00014428,2]
[347154436,1735528242973,-500.0,0.00014428,2]
[347154438,1735528242981,-489.72989048,0.00014428,2]
[347154440,1735528242990,-500.0,0.00014428,2]
[347154442,1735528243000,-500.0,0.00014428,2]
[347154445,1735528243009,-500.0,0.00014428,2]
[347154448,1735528243019,-500.0,0.00014428,2]
[347154451,1735528243029,-500.0,0.00014428,2]
[347154454,1735528243038,-634.37079438,0.00014428,2]
[347154457,1735528243048,-500.0,0.00014428,2]
[347154460,1735528243057,-500.0,0.00014428,2]
[347154463,1735528243067,-500.0,0.00014428,2]
[347154465,1735528243076,-500.0,0.00014428,2]
[347154469,1735528243085,-758.85437391,0.00014428,2]
[347154473,1735528243103,-3626.40562609,0.00014428,2]
[347154475,1735528243112,-500.0,0.00014428,2]
[347154477,1735528243123,-500.0,0.00014428,2]
[347154479,1735528243132,-500.0,0.00014428,2]
[347154481,1735528243141,-500.0,0.00014428,2]
[347154483,1735528243150,-500.0,0.00014428,2]
[347154485,1735528243160,-503.25417709,0.00014428,2]
[347154487,1735528243169,-503.79910746,0.00014428,2]
[347154490,1735528243178,-500.0,0.00014428,2]
[347154493,1735528243187,-225.29402047,0.00014489,2]
[347154495,1735528243197,-500.0,0.00014699,2]
[347154497,1735528243207,-500.0,0.00014699,2]
[347154499,1735528243216,-500.0,0.00014699,2]
[347154501,1735528243225,-479.55,0.00014699,2]
[347154503,1735528243235,-500.0,0.00014699,2]
[347154505,1735528243245,-500.0,0.00014699,2]
[347154507,1735528243254,-503.83123803,0.00014699,2]
[347154509,1735528243265,-559.36,0.00014699,2]
[347154511,1735528243274,-500.0,0.00014701,2]
[347154513,1735528243284,-500.0,0.00014701,2]
[347154515,1735528243293,-500.0,0.00014701,2]
[347154517,1735528243302,-506.6,0.00014701,2]
[347154519,1735528243312,-509.82,0.00014701,2]
[347154521,1735528243323,-39.45038273,0.00014701,2]
[347154523,1735528243335,-460.54961727,0.00014701,2]
[347154525,1735528243344,-333.43,0.00014701,2]
[347154527,1735528243354,-434.16155759,0.00014701,2]
[347154529,1735528243363,-500.0,0.00014701,2]
[347154531,1735528243372,-500.0,0.00014701,2]
[347154533,1735528243382,-500.0,0.00014701,2]
[347154535,1735528243392,-500.0,0.00014701,2]
[347154537,1735528243401,-500.0,0.00014701,2]
[347154538,1735528243411,-500.0,0.00014701,2]
[347154540,1735528243420,-500.0,0.00014701,2]
[347154542,1735528243439,-500.0,0.00014701,2]
[347154546,1735528243449,-500.0,0.00014701,2]
[347154548,1735528243459,-500.0,0.00014702,2]
[347154552,1735528243469,-500.0,0.00014702,2]
[347154554,1735528243478,-500.0,0.00014702,2]
[347154563,1735528243555,-500.0,0.00014702,2]
[347154565,1735528243573,-500.0,0.00014702,2]
[347154567,1735528243582,-500.0,0.00014702,2]
[347154569,1735528243593,-500.0,0.00014702,2]
[347154571,1735528243602,-500.0,0.00014702,2]
[347154572,1735528243612,-646.51355447,0.00014702,2]
[347154574,1735528243621,-376.05484492,0.00014702,2]
[347154576,1735528243631,-500.0,0.00014702,2]
[347154578,1735528243641,-500.0,0.00014702,2]
[347154579,1735528243650,-500.0,0.00014702,2]
[347154581,1735528243659,-195.83042582,0.00014702,2]
[347154583,1735528243672,-326.63957418,0.00014702,2]
[347154585,1735528243685,-357.65311399,0.00014702,2]
[347154587,1735528243697,-252.47510914,0.00014702,2]
[347154589,1735528243706,-500.0,0.00014702,2]
[347154591,1735528243715,-500.0,0.00014702,2]
[347154593,1735528243726,-500.0,0.00014702,2]
[347154595,1735528243735,-1157.76921282,0.00014702,2]
[347154597,1735528243747,-1234.27080631,0.00014702,2]
[347154601,1735528243773,-1993.21998087,0.00014702,2]
[347154602,1735528243782,-500.0,0.00014702,2]
[347154604,1735528243792,-500.0,0.00014702,2]
[347154606,1735528243802,-238.45497035,0.00014702,2]
[347154608,1735528243812,-594.15329439,0.00014702,2]
[347154609,1735528243824,-500.0,0.00014702,2]
[347154610,1735528243834,-500.32111595,0.00014734,2]
[347154611,1735528243843,-501.41644851,0.00014734,2]
[347154612,1735528243853,-500.0,0.00014735,2]
[347154613,1735528243863,-503.2018599,0.00014735,2]
[347154614,1735528243873,-504.60477394,0.00014735,2]
[347154615,1735528243883,-500.0,0.00014735,2]
[347154616,1735528243892,-503.82876462,0.00014735,2]
[347154617,1735528243902,-503.40381298,0.00014735,2]
[347154618,1735528243911,-500.0,0.00014735,2]
[347154619,1735528243921,-500.0,0.00014735,2]
[347154620,1735528243931,-13.39500151,0.00014735,2]
[347154621,1735528244062,-500.49701248,0.00013603,2]
[347154622,1735528244072,-486.60499849,0.00014735,2]
[347154623,1735528244082,-58.64070849,0.00014735,2]
[347154624,1735528244107,-441.35929151,0.00014735,2]
[347154625,1735528244116,-156.59394498,0.00014735,2]
[347154626,1735528245323,-345.30994011,0.00014735,2]
[347154627,1735528245333,-500.0,0.00014735,2]
[347154628,1735528245343,-500.0,0.00014735,2]
[347154629,1735528245352,-500.0,0.00014735,2]
[347154630,1735528245362,-500.0,0.00014735,2]
[347154631,1735528245371,-500.0,0.00014735,2]
[347154632,1735528245380,-503.13363288,0.00014735,2]
[347154633,1735528245390,-500.0,0.00014735,2]
[347154634,1735528245399,-500.0,0.00014735,2]
[347154635,1735528245409,-515.0840002,0.00014735,2]
[347154636,1735528245419,-500.0,0.00014735,2]
[347154637,1735528245429,-500.0,0.00014735,2]
[347154638,1735528245438,-500.0,0.00014735,2]
[347154639,1735528245448,-522.66040008,0.00014735,2]
[347154640,1735528245458,-509.5221815,0.00014735,2]
[347154641,1735528245467,-507.30331885,0.00014735,2]
[347154642,1735528245477,-500.0,0.00014735,2]
[347154643,1735528245487,-500.0,0.00014735,2]
[347154644,1735528245496,-500.0,0.00014735,2]
[347154645,1735528245506,-500.0,0.00014735,2]
[347154646,1735528245516,-500.0,0.00014735,2]
[347154647,1735528245526,-500.0,0.00014735,2]
[347154648,1735528245535,-503.03410058,0.00014736,2]
[347154649,1735528245546,-505.64412285,0.00014736,2]
[347154650,1735528245555,-501.09390866,0.00014736,2]
[347154651,1735528245565,-156.28572349,0.00014736,2]
[347154652,1735528245575,-502.60568723,0.00014736,2]
[347154653,1735528245585,-501.13890249,0.00014736,2]
[347154654,1735528245595,-500.0,0.00014736,2]
[347154655,1735528245604,-500.96579449,0.00014736,2]
[347154656,1735528245614,-510.47118281,0.00014736,2]
[347154657,1735528245624,-500.0,0.00014736,2]
[347154658,1735528245633,-500.0,0.00014736,2]
[347154659,1735528245643,-501.80095836,0.00014736,2]
[347154660,1735528245652,-501.67941222,0.00014736,2]
[347154661,1735528245661,-502.18524035,0.00014736,2]
[347154662,1735528245670,-500.0,0.00014736,2]
[347154663,1735528245683,-501.45703769,0.00014736,2]
[347154664,1735528245693,-501.17414596,0.00014736,2]
[347154665,1735528245703,-500.0,0.00014736,2]
[347154666,1735528245712,-500.0,0.00014736,2]
[347154667,1735528245723,-500.0,0.00014736,2]
[347154668,1735528245733,-501.67445255,0.00014736,2]
[347154669,1735528245743,-500.76306308,0.00014736,2]
[347154670,1735528245753,-500.0,0.00014736,2]
[347154671,1735528245763,-513.96728854,0.00014736,2]
[347154672,1735528245773,-500.0,0.00014736,2]
[347154673,1735528245783,-504.96345629,0.00014736,2]
[347154674,1735528245792,-507.0788821,0.00014736,2]
[347154675,1735528245802,-500.0,0.00014736,2]
[347154676,1735528245811,-500.0,0.00014736,2]
[347154677,1735528245823,-500.0,0.00014736,2]
[347154678,1735528245833,-501.60061744,0.00014736,2]
[347154679,1735528245842,-500.0,0.00014736,2]
[347154680,1735528245852,-500.0,0.00014736,2]
[347154681,1735528245861,-500.0,0.00014736,2]
[347154682,1735528245871,-500.0,0.00014736,2]
[347154683,1735528245881,-502.05299559,0.00014736,2]
[347154684,1735528245890,-500.0,0.00014736,2]
[347154685,1735528245900,-501.03545287,0.00014736,2]
[347154686,1735528245910,-502.13853898,0.00014736,2]
[347154687,1735528245920,-500.0,0.00014736,2]
[347154688,1735528245929,-502.00281916,0.00014736,2]
[347154689,1735528245939,-505.03861358,0.00014736,2]
[347154690,1735528245949,-335.56597367,0.00014736,2]
[347154691,1735528245959,-500.0,0.00014736,2]
[347154692,1735528245969,-501.18951963,0.00014736,2]
[347154693,1735528245978,-500.37107744,0.00014736,2]
[347154694,1735528245987,-508.54679284,0.00014736,2]
[347154695,1735528245997,-500.99891145,0.00014736,2]
[347154696,1735528246006,-510.45677242,0.00014736,2]
[347154697,1735528246016,-319.66802777,0.00014736,2]
[347154698,1735528246025,-500.92388413,0.00014736,2]
[347154699,1735528246034,-501.83854039,0.00014736,2]
[347154700,1735528246044,-506.25564404,0.00014736,2]
[347154701,1735528246053,-512.57338251,0.00014736,2]
[347154702,1735528246063,-500.0,0.00014736,2]
[347154703,1735528246072,-507.37004022,0.00014736,2]
[347154704,1735528246081,-500.0,0.00014736,2]
[347154705,1735528246091,-504.32305219,0.00014736,2]
[347154706,1735528246100,-501.73062378,0.00014736,2]
[347154707,1735528246109,-501.00707134,0.00014736,2]
[347154708,1735528246119,-504.94055522,0.00014736,2]
[347154709,1735528246128,-582.18162216,0.00014736,2]
[347154710,1735528246137,-500.98883154,0.00014736,2]
[347154711,1735528246147,-246.47709785,0.00014736,2]
[347154712,1735528246157,-502.60537125,0.00014736,2]
[347154713,1735528246166,-500.0,0.00014736,2]
[347154714,1735528246176,-508.13168994,0.00014736,2]
[347154715,1735528246185,-500.0,0.00014736,2]
[347154716,1735528246195,-500.0,0.00014736,2]
[347154717,1735528246205,-151.65104029,0.00014736,2]
[347154718,1735528246254,-500.49701248,0.00013467,2]
[347154719,1735528246263,-194.93114352,0.00014736,2]
[347154721,1735528246273,-500.0,0.00014736,2]
[347154723,1735528246282,-238.078844,0.00014736,2]
[347154725,1735528246296,-261.921156,0.00014736,2]
[347154727,1735528246306,-500.0,0.00014736,2]
[347154729,1735528246315,-500.0,0.00014736,2]
[347154730,1735528246325,-500.0,0.00014736,2]
[347154731,1735528246335,-500.0,0.00014736,2]
[347154732,1735528246344,-500.0,0.00014736,2]
[347154733,1735528246353,-491.61836905,0.00014736,2]
[347154734,1735528246362,-500.0,0.00014736,2]
[347154735,1735528246372,-500.0,0.00014736,2]
[347154736,1735528246382,-500.0,0.00014736,2]
[347154737,1735528246391,-126.47603204,0.00014736,2]
[347154738,1735528246406,-374.58749616,0.00014736,2]
[347154739,1735528246416,-500.0,0.00014736,2]
[347154740,1735528246425,-500.92555014,0.00014736,2]
[347154741,1735528246436,-500.0,0.00014736,2]
[347154742,1735528246446,-270.33950607,0.00014736,2]
[347154743,1735528246455,-502.04632583,0.00014736,2]
[347154744,1735528246464,-507.10366578,0.00014736,2]
[347154745,1735528246474,-466.4711778,0.00014736,2]
[347154746,1735528246484,-500.0,0.00014736,2]
[347154747,1735528246494,-502.83661736,0.00014736,2]
[347154748,1735528246504,-500.0,0.00014736,2]
[347154749,1735528246513,-501.14956778,0.00014736,2]
[347154750,1735528246523,-500.0,0.00014736,2]
[347154751,1735528246596,-500.57479648,0.00014736,2]
[347154752,1735528246612,-501.66850296,0.00014736,2]
[347154753,1735528246622,-501.47646778,0.00014736,2]
[347154754,1735528246632,-501.57767643,0.00014736,2]
[347154755,1735528246642,-501.64201709,0.00014736,2]
[347154756,1735528246651,-179.59501156,0.00014773,2]
[347154757,1735528246660,-500.0,0.00014973,2]
[347154758,1735528246670,-500.0,0.00014973,2]
[347154759,1735528246682,-500.0,0.00014973,2]
[347154760,1735528246692,-500.0,0.00014973,2]
[347154761,1735528246702,-500.0,0.00014973,2]
[347154762,1735528246712,-559.36,0.00014973,2]
[347154763,1735528246721,-500.0,0.00014975,2]
[347154764,1735528246733,-521.38,0.00014975,2]
[347154765,1735528246743,-500.0,0.00014975,2]
[347154766,1735528246752,-500.0,0.00014975,2]
[347154767,1735528246763,-500.0,0.00014975,2]
[347154768,1735528246773,-500.0,0.00014975,2]
[347154769,1735528246782,-500.0,0.00014975,2]
[347154770,1735528246792,-500.0,0.00014975,2]
[347154771,1735528246802,-500.0,0.00014975,2]
[347154772,1735528246811,-345.76,0.00014975,2]
[347154773,1735528246820,-185.59,0.00014975,2]
[347154774,1735528246833,-466.0,0.00014975,2]
[347154775,1735528246843,-500.0,0.00014975,2]
[347154776,1735528246853,-500.0,0.00014976,2]
[347154777,1735528246863,-500.0,0.00014976,2]
[347154778,1735528246872,-500.0,0.00014976,2]
[347154779,1735528246882,-500.0,0.00014976,2]
[347154780,1735528246891,-500.0,0.00014976,2]
[347154781,1735528246901,-504.99972044,0.00014976,2]
[347154782,1735528246910,-500.0,0.00014976,2]
[347154783,1735528246920,-500.0,0.00014976,2]
[347154784,1735528246930,-574.83,0.00014976,2]
[347154785,1735528246940,-500.0,0.00014976,2]
[347154786,1735528246949,-500.0,0.00014976,2]
[347154787,1735528246959,-328.28,0.00014976,2]
[347154788,1735528246968,-4385.26,0.00014976,2]
[347154789,1735528246978,-500.0,0.00014976,2]
[347154790,1735528246987,-500.0,0.00014976,2]
[347154791,1735528246998,-500.0,0.00014976,2]
[347154792,1735528247006,-500.0,0.00015009,2]
[347154793,1735528247016,-500.0,0.00015009,2]
[347154794,1735528247025,-500.0,0.00015009,2]
[347154795,1735528247034,-500.0,0.00015009,2]
[347154796,1735528247043,-500.0,0.00015009,2]
[347154797,1735528247053,-500.0,0.00015009,2]
[347154798,1735528247062,-500.0,0.00015009,2]
[347154799,1735528247074,-500.0,0.00015009,2]
[347154800,1735528247083,-500.0,0.00015009,2]
[347154801,1735528247092,-500.0,0.00015009,2]
[347154802,1735528247101,-500.0,0.00015009,2]
[347154803,1735528247111,-500.0,0.00015009,2]
[347154804,1735528247120,-500.0,0.00015009,2]
[347154805,1735528247130,-500.0,0.00015009,2]
[347154806,1735528247139,-604.26313156,0.00015009,2]
[347154807,1735528247148,-500.0,0.00015009,2]
[347154808,1735528247158,-500.0,0.00015009,2]
[347154809,1735528247167,-500.0,0.00015009,2]
[347154810,1735528247176,-500.0,0.00015009,2]
[347154811,1735528247186,-500.0,0.00015009,2]
[347154812,1735528247196,-500.0,0.00015009,2]
[347154813,1735528247205,-500.0,0.0001501,2]
[347154814,1735528247214,-504.44556353,0.0001501,2]
[347154815,1735528247223,-504.43001358,0.0001501,2]
[347154816,1735528247233,-509.44854795,0.0001501,2]
[347154817,1735528247242,-500.0,0.0001501,2]
[347154818,1735528247251,-500.0,0.0001501,2]
[347154819,1735528247261,-500.0,0.0001501,2]
[347154820,1735528247270,-503.8741069,0.0001501,2]
[347154821,1735528247279,-505.77979966,0.0001501,2]
[347154822,1735528247288,-491.95752243,0.0001501,2]
[347154823,1735528247297,-503.97015443,0.0001501,2]
[347154824,1735528247307,-502.51047285,0.0001501,2]
[347154825,1735528247316,-500.0,0.0001501,2]
[347154826,1735528247328,-530.02848492,0.0001501,2]
[347154827,1735528247337,-520.10358866,0.0001501,2]
[347154828,1735528247347,-501.42680683,0.0001501,2]
[347154829,1735528247356,-502.12990021,0.0001501,2]
[347154830,1735528247366,-503.34563675,0.0001501,2]
[347154831,1735528247375,-500.0,0.0001501,2]
[347154832,1735528247384,-507.7868198,0.0001501,2]
[347154833,1735528247394,-503.64265417,0.0001501,2]
[347154834,1735528247403,-509.13395835,0.0001501,2]
[347154835,1735528247413,-509.79478455,0.0001501,2]
[347154836,1735528247423,-500.0,0.0001501,2]
[347154837,1735528247433,-500.0,0.0001501,2]
[347154838,1735528247443,-504.11530734,0.0001501,2]
[347154839,1735528247454,-500.0,0.0001501,2]
[347154840,1735528247463,-500.0,0.0001501,2]
[347154841,1735528247473,-500.0,0.0001501,2]
[347154842,1735528247483,-500.0,0.0001501,2]
[347154843,1735528247492,-504.59705988,0.0001501,2]
[347154844,1735528247502,-506.68054398,0.0001501,2]
[347154845,1735528247512,-501.99128868,0.0001501,2]
[347154846,1735528247522,-500.0,0.0001501,2]
[347154847,1735528247532,-503.65668775,0.0001501,2]
[347154848,1735528247542,-500.0,0.0001501,2]
[347154849,1735528247551,-539.43231961,0.0001501,2]
[347154850,1735528247561,-501.01092951,0.0001501,2]
[347154851,1735528247571,-505.07602194,0.0001501,2]
[347154852,1735528247581,-215.62574982,0.00015061,2]
[347154853,1735528247591,-500.0,0.00015061,2]
[347154854,1735528247601,-505.06964362,0.00015061,2]
[347154855,1735528247610,-502.92238806,0.00015061,2]
[347154856,1735528247620,-502.00796745,0.00015143,2]
[347154857,1735528247629,-500.0,0.00015247,2]
[347154858,1735528247639,-500.0,0.00015247,2]
[347154859,1735528247648,-500.0,0.00015247,2]
[347154860,1735528247658,-500.0,0.00015247,2]
[347154861,1735528247668,-492.2439585,0.00015247,2]
[347154862,1735528247678,-559.36,0.00015247,2]
[347154863,1735528247690,-500.0,0.00015249,2]
[347154864,1735528247699,-500.0,0.00015249,2]
[347154865,1735528247709,-500.0,0.00015249,2]
[347154866,1735528247718,-500.0,0.00015249,2]
[347154867,1735528247729,-500.0,0.00015249,2]
[347154868,1735528247739,-500.0,0.00015249,2]
[347154869,1735528247748,-500.0,0.00015249,2]
[347154870,1735528247759,-500.0,0.00015249,2]
[347154871,1735528247769,-622.19788297,0.00015249,2]
[347154872,1735528247778,-500.0,0.0001525,2]
[347154873,1735528247788,-341.67,0.0001525,2]
[347154874,1735528247798,-500.0,0.0001525,2]
[347154875,1735528247807,-500.0,0.0001525,2]
[347154876,1735528247816,-500.0,0.0001525,2]
[347154877,1735528247827,-500.0,0.0001525,2]
[347154878,1735528247837,-500.0,0.0001525,2]
[347154879,1735528247846,-500.0,0.0001525,2]
[347154880,1735528247855,-4385.26,0.0001525,2]
[347154881,1735528247865,-500.0,0.0001525,2]
[347154882,1735528247874,-500.0,0.0001525,2]
[347154883,1735528247883,-500.0,0.00015283,2]
[347154884,1735528247955,-500.0,0.00015283,2]
[347154885,1735528247966,-500.0,0.00015283,2]
[347154886,1735528247976,-500.0,0.00015283,2]
[347154887,1735528247986,-500.0,0.00015283,2]
[347154888,1735528247996,-487.06707841,0.00015283,2]
[347154889,1735528248006,-500.0,0.00015283,2]
[347154890,1735528248015,-500.0,0.00015283,2]
[347154891,1735528248025,-500.0,0.00015283,2]
[347154892,1735528248035,-500.0,0.00015283,2]
[347154893,1735528248045,-500.0,0.00015283,2]
[347154894,1735528248055,-500.0,0.00015283,2]
[347154895,1735528248066,-500.0,0.00015283,2]
[347154896,1735528248077,-500.0,0.00015283,2]
[347154897,1735528248087,-503.81998036,0.00015283,2]
[347154898,1735528248097,-500.0,0.00015283,2]
[347154899,1735528248106,-527.93347276,0.00015283,2]
[347154900,1735528248116,-504.350125,0.00015283,2]
[347154901,1735528248126,-500.0,0.00015283,2]
[347154902,1735528248136,-502.47937163,0.00015283,2]
[347154903,1735528248146,-500.0,0.00015284,2]
[347154904,1735528248155,-500.0,0.00015284,2]
[347154905,1735528248164,-500.0,0.00015284,2]
[347154906,1735528248173,-500.0,0.00015284,2]
[347154907,1735528248183,-401.86240212,0.00015284,2]
[347154908,1735528248193,-304.77641913,0.00015284,2]
[347154909,1735528248203,-504.66936235,0.00015284,2]
[347154910,1735528248213,-500.0,0.00015284,2]
[347154911,1735528248223,-500.0,0.00015284,2]
[347154912,1735528248232,-500.0,0.00015284,2]
[347154913,1735528248242,-501.87190635,0.00015284,2]
[347154914,1735528248253,-504.02993081,0.00015284,2]
[347154915,1735528248263,-500.0,0.00015284,2]
[347154916,1735528248273,-500.0,0.00015337,2]
[347154917,1735528248282,-502.41149017,0.00015377,2]
[347154918,1735528248292,-500.0,0.00015481,2]
[347154919,1735528248302,-188.23020643,0.00015481,2]
[347154920,1735528248312,-550.51484272,0.00015521,2]
[347154921,1735528248323,-500.0,0.00015521,2]
[347154922,1735528248332,-500.0,0.00015521,2]
[347154923,1735528248342,-500.0,0.00015521,2]
[347154924,1735528248352,-559.36,0.00015521,2]
[347154925,1735528248361,-500.0,0.00015523,2]
[347154926,1735528248371,-500.0,0.00015523,2]
[347154927,1735528248382,-500.0,0.00015523,2]
[347154928,1735528248392,-500.0,0.00015523,2]
[347154929,1735528248402,-500.0,0.00015523,2]
[347154930,1735528248411,-500.0,0.00015523,2]
[347154931,1735528248420,-500.0,0.00015523,2]
[347154932,1735528248430,-500.0,0.00015524,2]
[347154933,1735528248440,-500.0,0.00015524,2]
[347154934,1735528248449,-627.21,0.00015524,2]
[347154935,1735528248459,-500.0,0.00015524,2]
[347154936,1735528248469,-500.0,0.00015524,2]
[347154937,1735528248479,-500.0,0.00015524,2]
[347154938,1735528248489,-4385.26,0.00015524,2]
[347154939,1735528248498,-500.0,0.00015524,2]
[347154940,1735528248508,-602.35,0.00015524,2]
[347154941,1735528248519,-527.06673634,0.00015537,2]
[347154942,1735528248529,-500.0,0.00015557,2]
[347154943,1735528248539,-500.0,0.00015557,2]
[347154944,1735528248549,-500.0,0.00015557,2]
[347154945,1735528248558,-500.0,0.00015557,2]
[347154946,1735528248568,-500.0,0.00015557,2]
[347154947,1735528248579,-500.0,0.00015557,2]
[347154948,1735528248588,-500.0,0.00015557,2]
[347154949,1735528248599,-500.0,0.00015557,2]
[347154950,1735528248608,-500.0,0.00015557,2]
[347154951,1735528248618,-590.08609771,0.00015557,2]
[347154952,1735528248628,-500.0,0.00015557,2]
[347154953,1735528248638,-500.0,0.00015557,2]
[347154954,1735528248648,-500.0,0.00015557,2]
[347154955,1735528248657,-500.0,0.00015557,2]
[347154956,1735528248667,-500.0,0.00015557,2]
[347154957,1735528248678,-249.55,0.00015558,2]
[347154958,1735528248690,-500.0,0.00015558,2]
[347154959,1735528248699,-500.0,0.00015558,2]
[347154960,1735528248708,-500.0,0.00015558,2]
[347154961,1735528248719,-500.0,0.00015558,2]
[347154962,1735528248728,-646.95421612,0.00015558,2]
[347154963,1735528248738,-214.01587728,0.00015558,2]
[347154964,1735528248747,-503.712558,0.00015558,2]
[347154965,1735528248756,-501.50112158,0.00015581,2]
[347154966,1735528248766,-502.31100259,0.00015609,2]
[347154967,1735528248776,-524.66289064,0.00015633,2]
[347154968,1735528248786,-500.0,0.00015633,2]
[347154969,1735528248796,-500.0,0.00015633,2]
[347154970,1735528248806,-505.37511582,0.00015633,2]
[347154971,1735528248815,-500.0,0.00015795,2]
[347154972,1735528248825,-500.0,0.00015795,2]
[347154973,1735528248835,-559.36,0.00015795,2]
[347154974,1735528248844,-500.0,0.00015797,2]
[347154975,1735528248854,-582.97,0.00015797,2]
[347154976,1735528248863,-500.0,0.00015797,2]
[347154977,1735528248872,-500.0,0.00015797,2]
[347154978,1735528248882,-500.0,0.00015797,2]
[347154979,1735528248892,-500.0,0.00015797,2]
[347154981,1735528248902,-500.0,0.00015797,2]
[347154982,1735528248915,-557.41,0.00015798,2]
[347154983,1735528248925,-500.0,0.00015798,2]
[347154984,1735528248934,-450.39261941,0.00015798,2]
[347154985,1735528248944,-4385.26,0.00015798,2]
[347154986,1735528248954,-258.15441714,0.00015798,2]
[347154987,1735528248963,-500.0,0.00015831,2]
[347154988,1735528248973,-500.0,0.00015831,2]
[347154989,1735528248983,-500.0,0.00015831,2]
[347154990,1735528248993,-500.0,0.00015831,2]
[347154991,1735528249004,-500.0,0.00015831,2]
[347154992,1735528249013,-500.0,0.00015831,2]
[347154993,1735528249023,-500.0,0.00015831,2]
[347154994,1735528249034,-506.77099437,0.00015831,2]
[347154995,1735528249046,-500.0,0.00015831,2]
[347154996,1735528249055,-500.0,0.00015831,2]
[347154997,1735528249065,-500.0,0.00015831,2]